{"text_format":"1","workbook":"xlsx","n_sheets":29,"sheets":["Инструкция","Лог обновления","Титульный","Отпуск ЭЭ сет организациями","Комментарии","Проверка","Statistic","TEHSHEET","et_union","AllSheetsInThisWorkbook","mod_01","mod_11","modComm","modListProv","modButton","modInstruction","modHTTP","REESTR_ORG","REESTR_FIL","REESTR_MO","REESTR_EGRUL","modfrmRegion","modfrmReestr","modfrmFindEGRUL","modfrmCheckUpdates","modReestr","modUpdTemplMain","modHyperlink","modClassifierValidate"],"not_rendered":{"charts":0,"images":18,"macros":1,"external_links":0,"defined_names":125,"comments":0,"pivot_tables":0},"unopened":[],"bounds":{"document_bytes":16777216,"sheet_cells":100000,"rows_first":2000,"rows_last":500,"rows_between":2000,"halvings":0,"cell_chars":16384,"cell_head_chars":4096},"cells_cut":0,"cells_raw":0,"read":"whole","date_system":"1900"}

{"sheet":"Инструкция","index":0,"n_rows":107,"n_cols":27,"rows_kept":107,"cut":false,"hidden":false,"merged":[[106,5,106,23],[85,4,85,6],[81,4,81,23],[87,4,87,9],[87,10,87,23],[102,4,102,23],[92,4,92,9],[93,4,93,9],[92,10,92,23],[93,10,93,23],[104,5,104,18],[90,4,90,9],[90,10,90,23],[82,4,82,23],[86,4,86,9],[86,10,86,23],[1,1,1,6],[2,1,2,2],[4,1,4,24],[6,4,18,23],[45,4,56,23],[20,5,20,12],[20,15,20,23],[21,5,21,12],[21,15,21,23],[34,4,38,23],[22,5,22,13],[58,4,58,9],[58,10,58,23],[59,4,59,9],[59,10,59,23],[39,4,39,23],[71,4,71,23],[70,4,70,23],[72,4,74,23],[88,4,88,23],[89,4,89,9],[89,10,89,23],[80,4,80,23],[79,4,79,23],[76,4,76,23]]}
[null,null,null,null,null,null,null,null,null,null,null,null,null,null,null,null,null,null,null,null,null,null,null,null,null,null," (требуется обновление)"]
[null,{"$f":"\"Код шаблона: \" & GetCode()","v":"Код шаблона: 46EP.STX"}]
[null,{"$f":"\"Версия \" & GetVersion()","v":"Версия 1.0"}]
[]
[null,"Сведения об отпуске (передаче) электроэнергии распределительными сетевыми организациями отдельным категориям потребителей\nПриказ Росстата: Об утверждении формы от 05.09.2018 № 543"]
[]
[null,null,null,null,"• На рабочем месте должен быть установлен MS Office 2007 SP3, 2010, 2013, 2016 с полной версией MS Excel\n\n• Макросы во время работы должны быть включены (!)\n\n• Для корректной работы отчёта требуется выбрать низкий уровень безопасности\n(В меню MS Excel 2007/2010/2013/2016: Параметры Excel | Центр управления безопасностью | Параметры центра управления безопасностью | Параметры макросов | Включить все макросы | ОК)\n\n• Если Вы работаете в табличном процессоре MS Excel 2007 и выше, то можете использовать для работы формат XLSB (Двоичная книга Excel). При работе в формате XLSB заметно быстрее происходит сохранение файла, а также уменьшается размер по сравнению с форматами XLS и XLSM\n\n• Не рекомендуется снимать защиту с листов и каким-либо образом модифицировать защищаемые формулы и расчётные поля, в противном случае, отчёт будет отклонён системой\n\n• При сохранении не следует выбирать формат XLSX (Книга Excel), так как в указанном формате макросы, необходимые для работы отчёта, безвозвратно удаляются"]
[]
[]
[]
[]
[]
[]
[]
[]
[]
[]
[]
[]
[]
[null,null,null,null,"A"," - предназначенные для заполнения",null,null,null,null,null,null,null,null,"A"," - обязательные для заполнения поля"]
[null,null,null,null,"A"," - с формулами и константами",null,null,null,null,null,null,null,null,"A"," - незаполняемые поля"]
[null,null,null,null,"A"," - с выбором значений по двойному клику"]
[]
[]
[]
[]
[]
[]
[]
[]
[]
[]
[]
[null,null,null,null,"Если в предложенном Вам списке необходимая организация, МР/МО отсутствуют, обновите реестры с помощью кнопок\n\nВ результате синхронизации с базой данных список организаций (МР/МО) будет заменён актуальным (механизм синхронизации требует подключения к сети Интернет и основан на использовании протокола HTTPS (TCP порт 443))\n\nЕсли после обновления Вам не удалось найти необходимую организацию в списке, обратитесь к ответственному за поддержание реестра Вашего региона."]
[]
[]
[]
[]
[]
[]
[]
[]
[]
[]
[null,null,null,null,"• При сохранении шаблона осуществляется проверка корректности данных, в том числе на наличие значений в ячейках, обязательных для заполнения\n\n• Если какая-то ячейка не удовлетворяет условию проверки, на лист «Проверка» добавляется гиперссылка на данную ячейку и указывается причина ошибки\n\n• В колонке «Статус» для каждого сообщения возможны 2 значения: ошибка и предупреждение\n\n• При наличии сообщений со статусом «Ошибка» шаблон будет отклонён системой и не будет загружен в хранилище данных, сообщения со статусом «Предупреждение» носят информационный характер, и такой шаблон будет принят системой"]
[]
[]
[]
[]
[]
[]
[]
[]
[]
[]
[]
[]
[null,null,null,null,"Консультации:",null,null,null,null,null,"Обратиться за помощью"]
[null,null,null,null,"Дистрибутивы:",null,null,null,null,null,"Перейти"]
[]
[]
[]
[]
[]
[]
[]
[]
[]
[null,null,null,null,"Общие указания по заполнению:"]
[null,null,null,null,"Указания по заполнению формы федерального статистического наблюдения"]
[]
[null,null,null,null,"Если срок предоставления отчета истек, необходимо загрузить в систему пояснительную записку и указать ссылку на нее на листе \"Титульный\" в поле \"Ссылка на обосновывающие материалы\""]
[]
[]
[null,null,null,null,"Обосновывающие материалы необходимо загружать с помощью \"ЕИАС Мониторинг\":"]
[null,null,null,null,"Руководство по загрузке документов"]
[]
[null,null,null,null,"Пример пояснительной записки:"]
[null,null,null,null,"Пояснительная записка"]
[]
[]
[]
[]
[]
[]
[null,null,null,null,"Отчётные формы:",null,null,null,null,null,"Перейти к разделу"]
[]
[null,null,null,null,"Контакты специалистов ЦА ФАС России:"]
[null,null,null,null,"ФИО:",null,null,null,null,null,"Максим Николаевич Пальянов"]
[null,null,null,null,"E-mail:",null,null,null,null,null,"palyanovmn@fas.gov.ru"]
[]
[null,null,null,null,"ФИО:",null,null,null,null,null,"Игорь Владиславович Бедрин"]
[null,null,null,null,"E-mail:",null,null,null,null,null,"bedrin@fas.gov.ru"]
[]
[]
[]
[]
[]
[]
[]
[]
[null,null,null,null,"При наличии подключения к Интернет, можно автоматически проверять наличие доступных обновлений. Выберите способ оповещения о наличии обновлений для отчёта:"]
[]
[null,null,null,null,null,"проверять доступные обновления (рекомендуется)",null,null,null,null,null,null,null,null,null,null,null,null,null,null,null,null,null,null,null,null,"y"]
[]
[null,null,null,null,null,"никогда не проверять наличие обновлений (не рекомендуется)"]

{"sheet":"Лог обновления","index":1,"n_rows":18,"n_cols":4,"rows_kept":18,"cut":false,"hidden":true,"merged":[]}
[]
["3/17/2012 12:12:41 AM","Дата/Время","Сообщение","Статус"]
[null,"2018-10-09T16:16:10","Проверка доступных обновлений...","Информация"]
[null,"2018-10-09T16:16:12","Нет доступных обновлений для отчёта с кодом 46EP.STX!","Информация"]
[null,"2018-10-09T16:18:22","Проверка доступных обновлений...","Информация"]
[null,"2018-10-09T16:18:23","Нет доступных обновлений для отчёта с кодом 46EP.STX!","Информация"]
[null,"2018-10-09T16:19:31","Проверка доступных обновлений...","Информация"]
[null,"2018-10-09T16:19:33","Нет доступных обновлений для отчёта с кодом 46EP.STX!","Информация"]
[null,"2019-01-11T10:34:41","Проверка доступных обновлений...","Информация"]
[null,"2019-01-11T10:34:43","Нет доступных обновлений для отчёта с кодом 46EP.STX!","Информация"]
[null,"2019-03-28T10:23:11","Проверка доступных обновлений...","Информация"]
[null,"2019-03-28T10:23:13","Нет доступных обновлений для отчёта с кодом 46EP.STX!","Информация"]
[null,"2019-04-17T09:39:31","Проверка доступных обновлений...","Информация"]
[null,"2019-04-17T09:39:32","Нет доступных обновлений для отчёта с кодом 46EP.STX!","Информация"]
[null,"2019-04-18T15:15:47","Проверка доступных обновлений...","Информация"]
[null,"2019-04-18T15:15:49","Нет доступных обновлений для отчёта с кодом 46EP.STX!","Информация"]
[null,"2019-05-14T09:58:03","Проверка доступных обновлений...","Информация"]
[null,"2019-05-14T09:58:06","Нет доступных обновлений для отчёта с кодом 46EP.STX!","Информация"]

{"sheet":"Титульный","index":2,"n_rows":60,"n_cols":10,"rows_kept":60,"cut":false,"hidden":false,"merged":[[7,4,7,6]]}
[]
[]
[]
[]
[]
[]
[null,null,null,null,null,null,{"$f":"version","v":"Версия 1.0"}]
[null,null,null,null,"Сведения об отпуске (передаче) электроэнергии распределительными сетевыми организациями отдельным категориям потребителей"]
[]
[null,null,null,null,null,"Субъект РФ","Орловская область"]
[null,null,null,null,null,null,"Отчетный период"]
[null,null,null,null,null,"Год",2020]
[null,null,null,null,null,"Месяц","год"]
[]
[null,null,null,null,null,"Наименование организации","АО \"Протон\"",null,null,"26416780"]
[null,null,null,null,null,"ИНН","5753018359"]
[null,null,null,null,null,"КПП","575301001"]
[null,null,null,null,null,"Вид деятельности","РСО"]
[]
[null,null,null,null,null,"Тип отчета","В целом по организации"]
[null,null,null,null,null,"Наименование обособленного подразделения"]
[]
[null,null,null,null,null,"ОКПО","41677105"]
[]
[null,null,null,null,null,"ОКАТО","54401369000"]
[]
[null,null,null,null,null,"Муниципальный район","Город Орёл"]
[null,null,null,null,null,"Муниципальное образование","Город Орёл"]
[null,null,null,null,null,"ОКТМО","54701000"]
[]
[null,null,null,null,null,"Котлодержатель","Нет"]
[]
[null,null,null,null,null,"Плательщик НДС","Да"]
[null,null,null,null,null,null,"Адрес организации"]
[null,null,null,null,null,"Юридический адрес:","Лескова ул., д.19, 302040, Россия"]
[null,null,null,null,null,"Почтовый адрес:","Лескова ул., д.19, 302040, Россия"]
[null,null,null,null,null,null,"Руководитель"]
[null,null,null,null,null,"Фамилия, имя, отчество","Меньшов В.В."]
[null,null,null,null,null,"(код) номер телефона","414410"]
[null,null,null,null,null,null,"Главный бухгалтер"]
[null,null,null,null,null,"Фамилия, имя, отчество","Волченко В.С."]
[null,null,null,null,null,"(код) номер телефона","414442"]
[null,null,null,null,null,null,"Должностное лицо, ответственное за составление формы"]
[null,null,null,null,null,"Фамилия, имя, отчество","Дрожжинова Т.Н."]
[null,null,null,null,null,"Должность","инженер-электрик"]
[null,null,null,null,null,"(код) номер телефона","498570"]
[null,null,null,null,null,"e-mail","dtamary@mail.ru"]
[]
[null,null,null,null,null,"Максимальный интервал представления отчёта за прошедшие периоды (дней)","90"]
[]
[]
[]
[]
[]
[]
[null,null,null,null,"Дата последнего обновления реестра МР/МО:\r09.10.2018 16:19:40"]
[null,null,null,null,"Дата последнего обновления реестра организаций: 14.05.2019 9:58:30"]
[]
[null,null,null,null,null,"Срок предоставления отчета истек","Нет"]
[null,null,null,null,null,"Ссылка на обосновывающие материалы"]

{"sheet":"Отпуск ЭЭ сет организациями","index":3,"n_rows":150,"n_cols":17,"rows_kept":150,"cut":false,"hidden":false,"merged":[[7,3,7,4],[10,3,11,3],[13,3,13,10],[49,3,49,10],[10,4,11,4],[10,5,11,5],[10,6,11,6],[10,7,10,10],[85,3,85,10],[89,3,89,10],[122,3,122,10],[145,5,145,6],[145,8,145,10],[146,5,146,6],[146,8,146,10],[146,12,146,13],[148,5,148,7],[149,5,149,7]]}
[]
[]
[]
[]
[null,null,null,null,null,"L1","L1.1","L1.2","L2","L2.1","L2.2","L3","L3.1","L3.1","L3.2","L4.1","L4.2"]
[]
[]
[null,null,null,"Сведения об отпуске (передаче) электроэнергии распределительными сетевыми организациями отдельным категориям потребителей"]
[null,null,null,{"$f":"IF(org=\"\",\"Не определено\",org)","v":"АО \"Протон\""}]
[null,null,null,null,null,null,null,null,null,null,"Коды по ОКЕИ: 1000 киловатт-часов – 246, мегаватт – 215, тысяча рублей – 384"]
[null,null,null,"№ п/п","Наименование показателя","Код строки","Всего","В том числе по уровню напряжения"]
[null,null,null,null,null,null,null,"ВН","СН1","СН2","НН"]
[null,null,null,0,1,2,3,4,5,6,7]
[null,null,null,"I. Электроэнергия (тыс. кВт ч)"]
[null,null,null,"1","Поступление в сеть из других организаций:",10,{"$f":"SUM(H15:K15)","v":81775.434999999998},{"$f":"H16+H17+H20+H23","v":81775.434999999998},{"$f":"I16+I17+I20+I23","v":0},{"$f":"J16+J17+J20+J23","v":0},{"$f":"K16+K17+K20+K23","v":0},null,null,null,null,10]
[null,null,null,"1.1","из сетей ПАО \"ФСК ЕЭС\"",20,{"$f":"SUM(H16:K16)","v":81775.434999999998},81775.434999999998,null,null,null,null,null,null,null,20]
[null,null,null,"1.2","от генерирующих компаний и блок-станций:",30,0,{"$f":"SUM(H18:H19)","v":0},{"$f":"SUM(I18:I19)","v":0},{"$f":"SUM(J18:J19)","v":0},{"$f":"SUM(K18:K19)","v":0},null,null,null,null,30]
[null,null,null,"1.2.0",null,"30"]
[null,null,null,null,"Добавить организацию"]
[null,null,null,"1.3","от несетевых организаций:","230",0,{"$f":"SUM(H21:H22)","v":0},{"$f":"SUM(I21:I22)","v":0},{"$f":"SUM(J21:J22)","v":0},{"$f":"SUM(K21:K22)","v":0}]
[null,null,null,"1.3.0",null,"230"]
[null,null,null,null,"Добавить организацию"]
[null,null,null,"1.4","от смежных сетевых организаций:","430",0,{"$f":"SUM(H24:H25)","v":0},{"$f":"SUM(I24:I25)","v":0},{"$f":"SUM(J24:J25)","v":0},{"$f":"SUM(K24:K25)","v":0},null,null,null,null,40]
[null,null,null,"1.4.0",null,"430"]
[null,null,null,null,"Добавить организацию"]
[null,null,null,"2","Поступление в сеть из других уровней напряжения (трансформация)","630",9992.5150000000031,{"$f":"H28+H29+H30","v":0},{"$f":"I27+I29+I30","v":0},{"$f":"J27+J28+J30","v":6904.2330000000011},{"$f":"K27+K28+K29","v":3088.2820000000011},null,null,null,null,50]
[null,null,null,"2.1","ВН","640",6904.2330000000011,null,null,{"$f":"H42","v":6904.2330000000011},null,null,null,null,null,60]
[null,null,null,"2.2","СН1","650",0,null,null,null,null,null,null,null,null,70]
[null,null,null,"2.3","СН2","660",3088.2820000000011,null,null,null,{"$f":"J42","v":3088.2820000000011},null,null,null,null,80]
[null,null,null,"2.4","НН ","670",0,null,null,null,null,null,null,null,null,90]
[null,null,null,"3","Генерация на установках организации (совмещение деятельности)","680",0]
[null,null,null,"4","Отпуск из сети:","690",75317.640999999989,{"$f":"H33+H35+H38+H41","v":68527.695999999996},{"$f":"I33+I35+I38+I41","v":0},{"$f":"J33+J35+J38+J41","v":3752.0549999999998},{"$f":"K33+K35+K38+K41","v":3037.89},null,null,null,null,100]
[null,null,null,"4.1","прямым прочим потребителям по договорам оказания услуг по передаче электрической энергии, в том числе:","700",0]
[null,null,null,"4.1.1","потребителям, опосредованно подключенным к шинам генераторов","710",0]
[null,null,null,"4.2","потребителям ГП, ЭСО, ЭСК, в том числе:","720",75317.640999999989,{"$f":"64228.415+H92","v":68527.695999999996},null,{"$f":"J92","v":3752.0549999999998},{"$f":"K91","v":3037.89}]
[null,null,null,"4.2.1","прочим потребителям, в том числе:","730",0]
[null,null,null,"4.2.1.1","потребителям, опосредованно подключенным к шинам генераторов","740",0]
[null,null,null,"4.3","смежным сетевым организациям:","750",0,{"$f":"SUM(H39:H40)","v":0},{"$f":"SUM(I39:I40)","v":0},{"$f":"SUM(J39:J40)","v":0},{"$f":"SUM(K39:K40)","v":0}]
[null,null,null,"4.3.0",null,"750"]
[null,null,null,null,"Добавить организацию"]
[null,null,null,"4.4","населению и приравненным к нему категориям","950",0,null,null,null,null,null,null,null,null,120]
[null,null,null,"5","Отпуск в сеть других уровней напряжения","960",9992.5150000000031,{"$f":"H16-H32-H44-H45-H46","v":6904.2330000000011},null,{"$f":"J27-J35-J45","v":3088.2820000000011},null,null,null,null,null,150]
[null,null,null,"6","Хозяйственные нужды организации","970",0,null,null,null,null,null,null,null,null,160]
[null,null,null,"7","Собственное потребление (совмещение деятельности)","980",5279.7610000000004,5279.7610000000004,null,null,null,null,null,null,null,180]
[null,null,null,"8","Общий объем потерь (фактические объемы), в том числе:","990",1178.0329999999999,1063.7449999999999,null,63.896000000000001,50.392000000000003,null,null,null,null,190]
[null,null,null,"8.1","относимые на собственное потребление (фактическое значение)","1000",0,null,null,null,null,null,null,null,null,200]
[null,null,null,"9","Нормативные потери (объемы потерь учтенные в сводном прогнозном балансе)","1010",1292.3,1167.365,0,70.165999999999997,54.768999999999998]
[null,null,null,"10","Объем превышения фактических объемов потерь электрической энергии над объемами потерь, учтенными в сводном прогнозном балансе за соответствующий расчетный период","1020",-114.26700000000011,{"$f":"H45-H47","v":-103.62000000000012},{"$f":"I45-I47","v":0},{"$f":"J45-J47","v":-6.269999999999996},{"$f":"K45-K47","v":-4.3769999999999953}]
[null,null,null,"11","Небаланс","1030",0,{"$f":"(H15+H26+H31)-(H32+H42+H43+H44+H45)","v":0},{"$f":"(I15+I26+I31)-(I32+I42+I43+I44+I45)","v":0},{"$f":"(J15+J26+J31)-(J32+J42+J43+J44+J45)","v":0},{"$f":"(K15+K26+K31)-(K32+K42+K43+K44+K45)","v":0},null,null,null,null,210]
[null,null,null,"II. Мощность (МВт)"]
[null,null,null,"12","Поступление в сеть из других организаций:","1040",20.96,{"$f":"H52+H53+H56+H59","v":20.96},{"$f":"I52+I53+I56+I59","v":0},{"$f":"J52+J53+J56+J59","v":0},{"$f":"K52+K53+K56+K59","v":0},null,null,null,null,300]
[null,null,null,"12.1","из сетей ПАО \"ФСК ЕЭС\"","1050",20.96,20.96,null,null,null,null,null,null,null,310]
[null,null,null,"12.2","от генерирующих компаний и блок-станций:","1060",0,{"$f":"SUM(H54:H55)","v":0},{"$f":"SUM(I54:I55)","v":0},{"$f":"SUM(J54:J55)","v":0},{"$f":"SUM(K54:K55)","v":0},null,null,null,null,320]
[null,null,null,"12.2.0",null,"1060"]
[null,null,null,null,"Добавить организацию"]
[null,null,null,"12.3","от несетевых организаций:","1260",0,{"$f":"SUM(H57:H58)","v":0},{"$f":"SUM(I57:I58)","v":0},{"$f":"SUM(J57:J58)","v":0},{"$f":"SUM(K57:K58)","v":0}]
[null,null,null,"12.3.0",null,"1260"]
[null,null,null,null,"Добавить организацию"]
[null,null,null,"12.4","от смежных сетевых организаций:","1460",0,{"$f":"SUM(H60:H61)","v":0},{"$f":"SUM(I60:I61)","v":0},{"$f":"SUM(J60:J61)","v":0},{"$f":"SUM(K60:K61)","v":0},null,null,null,null,330]
[null,null,null,"12.4.0",null,"1460"]
[null,null,null,null,"Добавить организацию"]
[null,null,null,"13","Поступление в сеть из других уровней напряжения (трансформация)","1660",2.5191984136800958,{"$f":"H64+H65+H66","v":0},{"$f":"I63+I65+I66","v":0},{"$f":"J63+J64+J66","v":1.7486356329990771},{"$f":"K63+K64+K65","v":0.77056278068101847},null,null,null,null,340]
[null,null,null,"13.1","ВН","1670",1.7486356329990771,null,null,{"$f":"H78","v":1.7486356329990771},null,null,null,null,null,350]
[null,null,null,"13.2","СН1","1680",0,null,null,null,null,null,null,null,null,360]
[null,null,null,"13.3","СН2","1690",0.77056278068101847,null,null,null,{"$f":"J78","v":0.77056278068101847},null,null,null,null,370]
[null,null,null,"13.4","НН ","1700",0,null,null,null,null,null,null,null,null,380]
[null,null,null,"14","Генерация на установках организации (совмещение деятельности)","1710",0]
[null,null,null,"15","Отпуск из сети:","1720",19.325791901871266,{"$f":"H69+H71+H74+H77","v":17.585449619375307},{"$f":"I69+I71+I74+I77","v":0},{"$f":"J69+J71+J74+J77","v":0.96169556053110572},{"$f":"K69+K71+K74+K77","v":0.77864672196485418},null,null,null,null,390]
[null,null,null,"15.1","прямым прочим потребителям по договорам оказания услуг по передаче электрической энергии, в том числе:","1730",0]
[null,null,null,"15.1.1","потребителям, опосредованно подключенным к шинам генераторов","1740",0]
[null,null,null,"15.2","потребителям ГП, ЭСО, ЭСК, в том числе:","1750",19.325791901871266,{"$f":"H52/$H$16*$H$35+0.021","v":17.585449619375307},null,{"$f":"H52/H16*J35","v":0.96169556053110572},{"$f":"H52/H16*K35","v":0.77864672196485418}]
[null,null,null,"15.2.1","прочим потребителям, в том числе:","1760",0]
[null,null,null,"15.2.1.1","потребителям, опосредованно подключенным к шинам генераторов","1770",0]
[null,null,null,"15.3","смежным сетевым организациям:","1780",0,{"$f":"SUM(H75:H76)","v":0},{"$f":"SUM(I75:I76)","v":0},{"$f":"SUM(J75:J76)","v":0},{"$f":"SUM(K75:K76)","v":0}]
[null,null,null,"15.3.0",null,"1780"]
[null,null,null,null,"Добавить организацию"]
[null,null,null,"15.4","населению и приравненным к нему категориям","1980",0,null,null,null,null,null,null,null,null,410]
[null,null,null,"16","Отпуск в сеть других уровней напряжения","1990",2.5191984136800958,{"$f":"H52-H68-H80-H81","v":1.7486356329990771},null,{"$f":"J63-J71-J81","v":0.77056278068101847},null,null,null,null,null,440]
[null,null,null,"17","Хозяйственные нужды организации","2000",0,null,null,null,null,null,null,null,null,450]
[null,null,null,"18","Собственное потребление (совмещение деятельности)","2010",1.3532644682354795,{"$f":"H52/H16*H44","v":1.3532644682354795},null,null,null,null,null,null,null,470]
[null,null,null,"19","Общий объем потерь (фактические объемы), в том числе:","2020",0.30194362989325585,{"$f":"H52/H16*H45","v":0.27265027939013714},null,{"$f":"H52/H16*J45","v":1.6377291786952894E-2},{"$f":"H52/H16*K45","v":1.2916058716165803E-2},null,null,null,null,480]
[null,null,null,"19.1","относимые на собственное потребление","2030",0,{"$f":"H52/H16*H46","v":0},null,null,null,null,null,null,null,490]
[null,null,null,"20","Нормативные потери (объемы потерь учтенные в сводном прогнозном балансе)","2040",0.27219891605019086,0.15080746025423394,null,8.7365325287568005E-2,3.4026130508388916E-2]
[null,null,null,"21","Объем превышения фактических объемов потерь электрической энергии над объемами потерь, учтенными в сводном прогнозном балансе за соответствующий расчетный период","2050",2.9744713843064971E-2,{"$f":"H81-H83","v":0.1218428191359032},{"$f":"I81-I83","v":0},{"$f":"J81-J83","v":-7.0988033500615111E-2},{"$f":"K81-K83","v":-2.1110071792223115E-2}]
[null,null,null,"22","Небаланс","2060",-2.1000000000001573E-2,{"$f":"(H51+H62+H67)-(H68+H78+H79+H80+H81)","v":0},{"$f":"(I51+I62+I67)-(I68+I78+I79+I80+I81)","v":0},{"$f":"(J51+J62+J67)-(J68+J78+J79+J80+J81)","v":0},{"$f":"(K51+K62+K67)-(K68+K78+K79+K80+K81)","v":-2.1000000000001573E-2},null,null,null,null,500]
[null,null,null,"III. Мощность (МВт)"]
[null,null,null,"23","Заявленная мощность","2070",20.679056370106746,{"$f":"G71+G80","v":20.679056370106746},null,null,null,null,null,null,null,600]
[null,null,null,"24","Максимальная мощность","2080",26.145199999999999,26.145199999999999,null,null,null,null,null,null,null,610]
[null,null,null,"25","Резервируемая мощность","2090",5.4118000000000004,5.4118000000000004,null,null,null,null,null,null,null,620]
[null,null,null,"IV. Фактический полезный отпуск конечным потребителям (тыс. кВт ч; МВт)"]
[null,null,null,"26","Полезный отпуск конечным потребителям (тыс. кВт ч):","2100",11089.225999999999,{"$f":"SUM(H92:H93)","v":4299.2809999999999},{"$f":"SUM(I92:I93)","v":0},{"$f":"SUM(J92:J93)","v":3752.0549999999998},{"$f":"SUM(K92:K93)","v":3037.89},null,null,null,null,700]
[null,null,null,"26.1","по одноставочному тарифу","2110",11019.544999999998,4299.2809999999999,null,3752.0549999999998,2968.2089999999998,null,null,null,null,710]
[null,null,null,"26.2","по двухставочному тарифу:","2120",69.680999999999997,{"$f":"H96","v":0},{"$f":"I96","v":0},{"$f":"J96","v":0},{"$f":"K96","v":69.680999999999997},null,null,null,null,720]
[null,null,null,"26.2.1","мощность (МВт), в том числе:","2130",8.0000000000000002E-3,null,null,null,8.0000000000000002E-3,null,null,null,null,730]
[null,null,null,"26.2.1.1","опосредованно подключенным к шинам генераторов (МВт)","2140",0]
[null,null,null,"26.2.2","компенсация потерь (тыс. кВт ч)","2150",69.680999999999997,null,null,null,69.680999999999997,null,null,null,null,740]
[null,null,null,"27","Полезный отпуск потребителям ГП, ЭСО (тыс. кВт ч):","2160",0,{"$f":"H98+H114","v":0},{"$f":"I98+I114","v":0},{"$f":"J98+J114","v":0},{"$f":"K98+K114","v":0},null,null,null,null,750]
[null,null,null,"27.1","по одноставочному тарифу:","2170",0,{"$f":"H99+H100","v":0},{"$f":"I99+I100","v":0},{"$f":"J99+J100","v":0},{"$f":"K99+K100","v":0},null,null,null,null,760]
[null,null,null,"27.1.1","прочим потребителям","2180",0]
[null,null,null,"27.1.2","населению и приравненным к нему категориям потребителей:","2190",0,{"$f":"H101+H104+H107+H110+H111+H112+H113","v":0},{"$f":"I101+I104+I107+I110+I111+I112+I113","v":0},{"$f":"J101+J104+J107+J110+J111+J112+J113","v":0},{"$f":"K101+K104+K107+K110+K111+K112+K113","v":0}]
[null,null,null,"27.1.2.1","Населению, проживающему в городских населенных пунктах в домах, не оборудованных в установленном порядке стационарными электроплитами и (или) электроотопительными установками и приравненным к нему категориям потребителей:","2200",0,{"$f":"H102+H103","v":0},{"$f":"I102+I103","v":0},{"$f":"J102+J103","v":0},{"$f":"K102+K103","v":0}]
[null,null,null,"27.1.2.1.1","в пределах социальной нормы потребления","2210",0]
[null,null,null,"27.1.2.1.2","сверх социальной нормы потребления","2220",0]
[null,null,null,"27.1.2.2","Населению, проживающему в городских населенных пунктах в домах, оборудованных в установленном порядке стационарными электроплитами и электроотопительными установками и приравненным к нему категориям потребителей:","2230",0,{"$f":"H105+H106","v":0},{"$f":"I105+I106","v":0},{"$f":"J105+J106","v":0},{"$f":"K105+K106","v":0}]
[null,null,null,"27.1.2.2.1","в пределах социальной нормы потребления","2240",0]
[null,null,null,"27.1.2.2.2","сверх социальной нормы потребления","2250",0]
[null,null,null,"27.1.2.3","Населению, проживающему в сельских населенных пунктах и приравненным к нему потребителям:","2260",0,{"$f":"H108+H109","v":0},{"$f":"I108+I109","v":0},{"$f":"J108+J109","v":0},{"$f":"K108+K109","v":0}]
[null,null,null,"27.1.2.3.1","в пределах социальной нормы потребления","2270",0]
[null,null,null,"27.1.2.3.2","сверх социальной нормы потребления","2280",0]
[null,null,null,"27.1.2.4","Садоводческим, огородническим или дачным некоммерческим объединениям граждан","2290",0]
[null,null,null,"27.1.2.5","Религиозным организациям","2300",0]
[null,null,null,"27.1.2.6","Юридическим лицам приобретающим электроэнергию в целях потребления на коммунально-бытовые нужды в населенных пунктах, жилых зонах при воинских частях и в целях потребления осужденными в помещениях для их содержания","2310",0]
[null,null,null,"27.1.2.7","Некоммерческим объединениям граждан (гаражно-строительные, гаражные кооперативы) и хозяйственные постройки физических лиц","2320",0]
[null,null,null,"27.2","по двухставочному тарифу (прочие потребители):","2330",0,{"$f":"H117","v":0},{"$f":"I117","v":0},{"$f":"J117","v":0},{"$f":"K117","v":0},null,null,null,null,770]
[null,null,null,"27.2.1","мощность (МВт), в том числе:","2340",0,null,null,null,null,null,null,null,null,780]
[null,null,null,"27.2.1.1"," опосредованно подключенным к шинам генераторов (МВт)","2350",0]
[null,null,null,"27.2.2","компенсация потерь (тыс. кВт ч)","2360",0,null,null,null,null,null,null,null,null,790]
[null,null,null,"28","Оплачиваемый сетевыми организациями объем оказанных услуг по индивидуальному тарифу:","2370",0,{"$f":"SUM(H119:H120)","v":0},{"$f":"SUM(I119:I120)","v":0},{"$f":"SUM(J119:J120)","v":0},{"$f":"SUM(K119:K120)","v":0}]
[null,null,null,"28.1","по одноставочному тарифу","2380",0]
[null,null,null,"28.2","по двухставочному тарифу:","2390",0,{"$f":"H122","v":0},{"$f":"I122","v":0},{"$f":"J122","v":0},{"$f":"K122","v":0}]
[null,null,null,"28.2.1","мощность (МВт)","2400",0]
[null,null,null,"28.2.2","компенсация потерь (тыс. кВт ч)","2410",0]
[null,null,null,"V. Стоимость услуг (тыс. руб.)"]
[null,null,null,"29","Стоимость услуг, оплачиваемая потребителями (конечными потребителями по прямым договорам и ТСО):","2420",0,{"$f":"SUM( H125:H126)","v":0},{"$f":"SUM( I125:I126)","v":0},{"$f":"SUM( J125:J126)","v":0},{"$f":"SUM( K125:K126)","v":0},null,null,null,null,800]
[null,null,null,"29.1","по одноставочному тарифу","2430",0,null,null,null,null,null,null,null,null,810]
[null,null,null,"29.2","по двухставочному тарифу:","2440",0,{"$f":"H127+H129","v":0},{"$f":"I127+I129","v":0},{"$f":"J127+J129","v":0},{"$f":"K127+K129","v":0},null,null,null,null,820]
[null,null,null,"29.2.1","мощность, в том числе:","2450",0,null,null,null,null,null,null,null,null,830]
[null,null,null,"29.2.1.1","опосредованно потребителям с шин генераторов","2460",0]
[null,null,null,"29.2.2","компенсация потерь","2470",0,null,null,null,null,null,null,null,null,840]
[null,null,null,"30","Стоимость услуг, оплачиваемая ГП, ЭСО:","2480",0,{"$f":"SUM( H131+H136)","v":0},{"$f":"SUM( I131+I136)","v":0},{"$f":"SUM( J131+J136)","v":0},{"$f":"SUM( K131+K136)","v":0},null,null,null,null,850]
[null,null,null,"30.1","по одноставочному тарифу","2490",{"$f":"SUM(H131:K131)","v":0},{"$f":"SUM( H132:H133)","v":0},{"$f":"SUM( I132:I133)","v":0},{"$f":"SUM( J132:J133)","v":0},{"$f":"SUM( K132:K133)","v":0},null,null,null,null,860]
[null,null,null,"30.1.1","прочим потребителям","2500",0]
[null,null,null,"30.1.2","населению и приравненным к нему категориям потребителей:","2510",0,{"$f":"H134+H135","v":0},{"$f":"I134+I135","v":0},{"$f":"J134+J135","v":0},{"$f":"K134+K135","v":0}]
[null,null,null,"30.1.2.1","в пределах социальной нормы потребления","2520",0]
[null,null,null,"30.1.2.2","сверх социальной нормы потребления ","2530",0]
[null,null,null,"30.2","по двухставочному тарифу (прочие потребители):","2540",0,{"$f":"H137+H139","v":0},{"$f":"I137+I139","v":0},{"$f":"J137+J139","v":0},{"$f":"K137+K139","v":0},null,null,null,null,870]
[null,null,null,"30.2.1","мощность, в том числе:","2550",0,null,null,null,null,null,null,null,null,880]
[null,null,null,"30.2.1.1","опосредованно потребителям с шин генераторов","2560",0]
[null,null,null,"30.2.2","компенсация потерь","2570",0,null,null,null,null,null,null,null,null,890]
[null,null,null,"31","Стоимость услуг, оплачиваемых сетевыми организациями по индивидуальному тарифу:","2580",10008.695,{"$f":"SUM( H141:H142)","v":10002.574000000001},{"$f":"SUM( I141:I142)","v":0},{"$f":"SUM( J141:J142)","v":0},{"$f":"SUM( K141:K142)","v":6.1210000000000004},null,null,null,null,900]
[null,null,null,"31.1","по одноставочному тарифу","2590",10002.574000000001,10002.574000000001]
[null,null,null,"31.2","по двухставочному тарифу:","2600",6.1210000000000004,{"$f":"H143+H144","v":0},{"$f":"I143+I144","v":0},{"$f":"J143+J144","v":0},{"$f":"K143+K144","v":6.1210000000000004}]
[null,null,null,"31.2.1","мощность","2610",2.8959999999999999,null,null,null,2.8959999999999999,null,null,null,null,"920"]
[null,null,null,"31.2.2","компенсация потерь","2620",3.2250000000000001,null,null,null,3.2250000000000001,null,null,null,null,"910"]
[]
[null,null,null,null,"Должностное лицо, ответственное за",{"$f":"IF(Титульный!G45=\"\",\"\",Титульный!G45)","v":"инженер-электрик"},null,null,{"$f":"IF(Титульный!G44=\"\",\"\",Титульный!G44)","v":"Дрожжинова Т.Н."}]
[null,null,null,null,"предоставление статистической информации","(должность)",null,null,"(Ф.И.О.)",null,null,null,"(подпись)"]
[null,null,null,null,"(лицо, уполномоченное предоставлять"]
[null,null,null,null,"статистическую информацию от имени",{"$f":"IF(Титульный!G46=\"\",\"\",Титульный!G46)","v":"498570"},null,null,null,"«____» _________20__ год"]
[null,null,null,null,"юридического лица)","(номер контактного телефона)",null,null,null,"(дата составления документа)"]

{"sheet":"Комментарии","index":4,"n_rows":14,"n_cols":5,"rows_kept":14,"cut":false,"hidden":false,"merged":[]}
[]
[]
[]
[]
[]
[]
[]
[null,null,null,"Комментарии"]
[null,null,null,{"$f":"IF(org=\"\",\"Не определено\",org)","v":"АО \"Протон\""}]
[]
[null,null,null,"№ п/п","Комментарий"]
[null,null,null,1,2]
[null,null,null,0]
[null,null,null,null,"Добавить комментарий"]

{"sheet":"Проверка","index":5,"n_rows":5,"n_cols":4,"rows_kept":5,"cut":false,"hidden":false,"merged":[[1,1,1,3]]}
[]
[null,"Результат проверки"]
[null,{"$f":"IF(org=\"\",\"Не определено\",org)","v":"АО \"Протон\""}]
[]
[null,"Ссылка","Причина","Статус"]

{"sheet":"Statistic","index":6,"n_rows":50,"n_cols":3,"rows_kept":50,"cut":false,"hidden":true,"merged":[]}
[50]
["06.09.2018 19:26:20","14.0","Windows (32-bit) NT 6.01"]
["11.09.2018 18:16:52","14.0","Windows (32-bit) NT 6.01"]
["11.09.2018 20:57:11","14.0","Windows (32-bit) NT 6.01"]
["12.09.2018 09:35:26","14.0","Windows (32-bit) NT 6.01"]
["12.09.2018 10:24:58","14.0","Windows (32-bit) NT 6.01"]
["12.09.2018 16:27:05","14.0","Windows (32-bit) NT 6.01"]
["13.09.2018 15:09:23","14.0","Windows (32-bit) NT 6.01"]
["13.09.2018 16:04:22","14.0","Windows (32-bit) NT 6.01"]
["13.09.2018 16:05:18","14.0","Windows (32-bit) NT 6.01"]
["13.09.2018 19:14:38","14.0","Windows (32-bit) NT 6.01"]
["14.09.2018 11:13:01","14.0","Windows (32-bit) NT 6.01"]
["14.09.2018 11:18:37","14.0","Windows (32-bit) NT 6.01"]
["17.09.2018 21:09:54","14.0","Windows (32-bit) NT 6.01"]
["18.09.2018 10:38:31","14.0","Windows (32-bit) NT 6.01"]
["18.09.2018 12:43:39","14.0","Windows (32-bit) NT 6.01"]
["18.09.2018 12:47:52","14.0","Windows (32-bit) NT 6.01"]
["18.09.2018 12:54:00","14.0","Windows (32-bit) NT 6.01"]
["18.09.2018 12:57:51","14.0","Windows (32-bit) NT 6.01"]
["18.09.2018 13:09:47","14.0","Windows (32-bit) NT 6.01"]
["18.09.2018 13:11:28","14.0","Windows (32-bit) NT 6.01"]
["18.09.2018 13:28:28","14.0","Windows (32-bit) NT 6.01"]
["18.09.2018 15:52:57","14.0","Windows (32-bit) NT 6.01"]
["18.09.2018 17:01:38","14.0","Windows (32-bit) NT 6.01"]
["18.09.2018 18:14:48","14.0","Windows (32-bit) NT 6.01"]
["19.09.2018 16:09:09","14.0","Windows (32-bit) NT 6.01"]
["19.09.2018 18:23:43","14.0","Windows (32-bit) NT 6.01"]
["20.09.2018 10:53:47","14.0","Windows (32-bit) NT 6.01"]
["20.09.2018 11:00:09","14.0","Windows (32-bit) NT 6.01"]
["20.09.2018 11:51:55","14.0","Windows (32-bit) NT 6.01"]
["20.09.2018 12:24:20","14.0","Windows (32-bit) NT 6.01"]
["20.09.2018 15:06:45","14.0","Windows (32-bit) NT 6.01"]
["20.09.2018 15:26:56","14.0","Windows (32-bit) NT 6.01"]
["21.09.2018 13:25:15","14.0","Windows (32-bit) NT 6.01"]
["21.09.2018 15:22:58","14.0","Windows (32-bit) NT 6.01"]
["21.09.2018 15:42:42","14.0","Windows (32-bit) NT 6.01"]
["21.09.2018 16:03:56","14.0","Windows (32-bit) NT 6.01"]
["21.09.2018 20:18:40","14.0","Windows (32-bit) NT 6.01"]
["22.09.2018 17:11:07","14.0","Windows (32-bit) NT 6.01"]
["23.09.2018 20:21:15","14.0","Windows (32-bit) NT 6.01"]
["24.09.2018 14:40:14","14.0","Windows (32-bit) NT 6.01"]
["25.09.2018 14:58:01","14.0","Windows (32-bit) NT 6.01"]
["25.09.2018 19:01:11","14.0","Windows (32-bit) NT 6.01"]
["03.10.2018 12:23:00","14.0","Windows (32-bit) NT 6.01"]
["09.10.2018 16:16:11","12.0","Windows (32-bit) NT 6.02"]
["11.01.2019 10:34:41","12.0","Windows (32-bit) NT 6.02"]
["28.03.2019 10:23:11","12.0","Windows (32-bit) NT 6.02"]
["17.04.2019 09:39:31","16.0","Windows (32-bit) NT 6.01"]
["18.04.2019 15:15:47","12.0","Windows (32-bit) NT 6.02"]
["14.05.2019 09:58:03","12.0","Windows (32-bit) NT 6.02"]

{"sheet":"TEHSHEET","index":7,"n_rows":86,"n_cols":7,"rows_kept":86,"cut":false,"hidden":true,"merged":[]}
[null,"Алтайский край",null,"MONTH","YEAR","DaNet","type_report"]
[0,"Амурская область",null,"январь",2018,"Да","В целом по организации"]
[null,"Архангельская область",null,"февраль",2019,"Нет","По обособленному подразделению"]
[null,"Астраханская область",null,"март",2020]
[null,"Белгородская область",null,"апрель",2021]
[null,"Брянская область",null,"май",2022]
[null,"Владимирская область",null,"июнь"]
[null,"Волгоградская область",null,"июль"]
[null,"Вологодская область",null,"август"]
[null,"Воронежская область",null,"сентябрь"]
[null,"г.Байконур",null,"октябрь"]
[null,"г. Москва",null,"ноябрь"]
[null,"г.Санкт-Петербург",null,"декабрь"]
[null,"г.Севастополь",null,"год"]
[null,"Еврейская автономная область"]
[null,"Забайкальский край"]
[null,"Ивановская область"]
[null,"Иркутская область"]
[null,"Кабардино-Балкарская республика"]
[null,"Калининградская область"]
[null,"Калужская область"]
[null,"Камчатский край",null,"URL_FORMAT"]
[null,"Карачаево-Черкесская республика",null,"https://portal.eias.ru/Portal/DownloadPage.aspx?type=12&guid=????????-????-????-????-????????????"]
[null,"Кемеровская область",null,"MSG_URL"]
[null,"Кировская область",null,{"$f":"\"Необходимо ввести ссылку на обосновывающие материалы в формате: \"\"\" & URL_FORMAT & \"\"\" (смотри раздел \"\"Методология заполнения\"\" листа \"\"Инструкция\"\")\"","v":"Необходимо ввести ссылку на обосновывающие материалы в формате: \"https://portal.eias.ru/Portal/DownloadPage.aspx?type=12&guid=????????-????-????-????-????????????\" (смотри раздел \"Методология заполнения\" листа \"Инструкция\")"}]
[null,"Костромская область"]
[null,"Краснодарский край"]
[null,"Красноярский край"]
[null,"Курганская область"]
[null,"Курская область"]
[null,"Ленинградская область"]
[null,"Липецкая область"]
[null,"Магаданская область"]
[null,"Московская область"]
[null,"Мурманская область"]
[null,"Ненецкий автономный округ"]
[null,"Нижегородская область"]
[null,"Новгородская область"]
[null,"Новосибирская область"]
[null,"Омская область"]
[null,"Оренбургская область"]
[null,"Орловская область"]
[null,"Пензенская область"]
[null,"Пермский край"]
[null,"Приморский край"]
[null,"Псковская область"]
[null,"Республика Адыгея"]
[null,"Республика Алтай"]
[null,"Республика Башкортостан"]
[null,"Республика Бурятия"]
[null,"Республика Дагестан"]
[null,"Республика Ингушетия"]
[null,"Республика Калмыкия"]
[null,"Республика Карелия"]
[null,"Республика Коми"]
[null,"Республика Крым"]
[null,"Республика Марий Эл"]
[null,"Республика Мордовия"]
[null,"Республика Саха (Якутия)"]
[null,"Республика Северная Осетия-Алания"]
[null,"Республика Татарстан"]
[null,"Республика Тыва"]
[null,"Республика Хакасия"]
[null,"Ростовская область"]
[null,"Рязанская область"]
[null,"Самарская область"]
[null,"Саратовская область"]
[null,"Сахалинская область"]
[null,"Свердловская область"]
[null,"Смоленская область"]
[null,"Ставропольский край"]
[null,"Тамбовская область"]
[null,"Тверская область"]
[null,"Томская область"]
[null,"Тульская область"]
[null,"Тюменская область"]
[null,"Удмуртская республика"]
[null,"Ульяновская область"]
[null,"Хабаровский край"]
[null,"Ханты-Мансийский автономный округ"]
[null,"Челябинская область"]
[null,"Чеченская республика"]
[null,"Чувашская республика"]
[null,"Чукотский автономный округ"]
[null,"Ямало-Ненецкий автономный округ"]
[null,"Ярославская область"]

{"sheet":"et_union","index":8,"n_rows":5,"n_cols":7,"rows_kept":5,"cut":false,"hidden":true,"merged":[]}
[]
["et_com"]
[null,null,"О",1]
["et_org"]
[null,null,null,null,null,null,{"$f":"SUM(H5:K5)","v":0}]

{"sheet":"AllSheetsInThisWorkbook","index":9,"n_rows":24,"n_cols":2,"rows_kept":24,"cut":false,"hidden":true,"merged":[]}
["Расчетные листы","Скрытые листы"]
["Инструкция","Statistic"]
["Лог обновления","TEHSHEET"]
["Титульный","et_union"]
["Отпуск ЭЭ сет организациями","AllSheetsInThisWorkbook"]
["Комментарии","mod_01"]
["Проверка","mod_11"]
[null,"modComm"]
[null,"modListProv"]
[null,"modButton"]
[null,"modInstruction"]
[null,"modHTTP"]
[null,"REESTR_ORG"]
[null,"REESTR_FIL"]
[null,"REESTR_MO"]
[null,"REESTR_EGRUL"]
[null,"modfrmRegion"]
[null,"modfrmReestr"]
[null,"modfrmFindEGRUL"]
[null,"modfrmCheckUpdates"]
[null,"modReestr"]
[null,"modUpdTemplMain"]
[null,"modHyperlink"]
[null,"modClassifierValidate"]

{"sheet":"mod_01","index":10,"n_rows":0,"n_cols":0,"rows_kept":0,"cut":false,"hidden":true,"merged":[]}

{"sheet":"mod_11","index":11,"n_rows":0,"n_cols":0,"rows_kept":0,"cut":false,"hidden":true,"merged":[]}

{"sheet":"modComm","index":12,"n_rows":0,"n_cols":0,"rows_kept":0,"cut":false,"hidden":true,"merged":[]}

{"sheet":"modListProv","index":13,"n_rows":0,"n_cols":0,"rows_kept":0,"cut":false,"hidden":true,"merged":[]}

{"sheet":"modButton","index":14,"n_rows":0,"n_cols":0,"rows_kept":0,"cut":false,"hidden":true,"merged":[]}

{"sheet":"modInstruction","index":15,"n_rows":0,"n_cols":0,"rows_kept":0,"cut":false,"hidden":true,"merged":[]}

{"sheet":"modHTTP","index":16,"n_rows":0,"n_cols":0,"rows_kept":0,"cut":false,"hidden":true,"merged":[]}

{"sheet":"REESTR_ORG","index":17,"n_rows":46,"n_cols":19,"rows_kept":46,"cut":false,"hidden":true,"merged":[]}
[null,"REGION_ID","REGION_NAME","MR_NAME","OKTMR_NAME","MO_NAME","OKTMO_NAME","RST_ORG_ID","ORG_NAME","INN_NAME","KPP_NAME","ORG_START_DATE","ORG_END_DATE","VDET_START_DATE","VDET_END_DATE","VDET_NAME","VDET_NAME_LIST","VDET_FULL_NAME_LIST","HAS_TARIFF"]
[1,"2597","Орловская область",null,null,null,null,"28796046","АО \"ГТ Энерго\"","7703806647","772801001",null,null,null,null,null,"РСО :: Нерегулируемый сбыт :: Комбинированная выработка :: Некомбинированная выработка","/Электроэнергетика/Передача ЭЭ/РСО :: /Электроэнергетика/Сбыт ЭЭ/Нерегулируемый сбыт :: /Электроэнергетика/Производство ЭЭ/Комбинированная выработка :: /Электроэнергетика/Производство ЭЭ/Некомбинированная выработка","Y"]
[2,"2597","Орловская область",null,null,null,null,"26318876","АО \"Мосэнергосбыт\"","7736520080","997650001",null,null,null,null,null,"ГП","/Электроэнергетика/Сбыт ЭЭ/ГП","Y"]
[3,"2597","Орловская область",null,null,null,null,"26416856","АО \"Мценский завод \"Коммаш\"","5703000204","570301001",null,null,null,null,null,"РСО :: Некомбинированная выработка","/Электроэнергетика/Передача ЭЭ/РСО :: /Электроэнергетика/Производство ЭЭ/Некомбинированная выработка","Y"]
[4,"2597","Орловская область",null,null,null,null,"27215840","АО \"Оборонэнерго\" филиал \"Волго-Вятский\"","7704726225","526343001","01-09-2011 00:00:00",null,null,null,null,"РСО","/Электроэнергетика/Передача ЭЭ/РСО","Y"]
[5,"2597","Орловская область",null,null,null,null,"26617350","АО \"Оборонэнергосбыт\"","7704731218","773043001","23-03-2010 00:00:00",null,null,null,null,"ГП","/Электроэнергетика/Сбыт ЭЭ/ГП","Y"]
[6,"2597","Орловская область",null,null,null,null,"26617350","АО \"Оборонэнергосбыт\"","7704731218","773043001","23-03-2010 00:00:00",null,null,null,null,"Нерегулируемый сбыт","/Электроэнергетика/Сбыт ЭЭ/Нерегулируемый сбыт","Y"]
[7,"2597","Орловская область",null,null,null,null,"26457763","АО \"Орелоблэнерго\"","5751028520","575101001",null,null,null,null,null,"РСО","/Электроэнергетика/Передача ЭЭ/РСО","Y"]
[8,"2597","Орловская область",null,null,null,null,"26416780","АО \"Протон\"","5753018359","575301001",null,null,null,null,null,"РСО","/Электроэнергетика/Передача ЭЭ/РСО","Y"]
[9,"2597","Орловская область",null,null,null,null,"26416948","ЗАО \"АВТОБАЗИС\"","5753029390","575301001",null,null,null,null,null,"РСО","/Электроэнергетика/Передача ЭЭ/РСО","Y"]
[10,"2597","Орловская область",null,null,null,null,"26846206","ИП Абрамов М.И.","575305979807","отсутствует",null,null,null,null,null,"РСО","/Электроэнергетика/Передача ЭЭ/РСО","Y"]
[11,"2597","Орловская область",null,null,null,null,"26812344","ИП Шамардин В. Д.","575303336984","отсутствует",null,null,null,null,null,"РСО","/Электроэнергетика/Передача ЭЭ/РСО","Y"]
[12,"2597","Орловская область",null,null,null,null,"28976639","МУП \"Свердловский\"","5722004229","572201001",null,null,null,null,null,"Комбинированная выработка","/Электроэнергетика/Производство ЭЭ/Комбинированная выработка","Y"]
[13,"2597","Орловская область",null,null,null,null,"26505895","Московская дирекция по энергообеспечению Трансэнерго - филиал ОАО \"РЖД\"","7708503727","770845041",null,null,null,null,null,"РСО","/Электроэнергетика/Передача ЭЭ/РСО","Y"]
[14,"2597","Орловская область",null,null,null,null,"26519580","ОАО \"МЛЗ\"","5703008860","570301001",null,null,null,null,null,"РСО","/Электроэнергетика/Передача ЭЭ/РСО","Y"]
[15,"2597","Орловская область",null,null,null,null,"26359142","ОАО \"Орловские металлы\"","5700000196","570301001",null,null,null,null,null,"РСО","/Электроэнергетика/Передача ЭЭ/РСО","Y"]
[16,"2597","Орловская область",null,null,null,null,"26837653","ОАО ГК «ТНС энерго»","7705541227","770201001",null,null,null,null,null,"Нерегулируемый сбыт","/Электроэнергетика/Сбыт ЭЭ/Нерегулируемый сбыт","Y"]
[17,"2597","Орловская область",null,null,null,null,"26416515","ООО  \"ОПК-Энерго\"","5754006476","575401001",null,null,null,null,null,"РСО","/Электроэнергетика/Передача ЭЭ/РСО","Y"]
[18,"2597","Орловская область",null,null,null,null,"28494271","ООО \"Антаго\"","5752058623","575201001",null,null,null,null,null,"РСО","/Электроэнергетика/Передача ЭЭ/РСО","Y"]
[19,"2597","Орловская область",null,null,null,null,"26766814","ООО \"ГРИНН Энергосбыт\"","4632116134","463201001",null,null,null,null,null,"Нерегулируемый сбыт","/Электроэнергетика/Сбыт ЭЭ/Нерегулируемый сбыт","Y"]
[20,"2597","Орловская область",null,null,null,null,"26613700","ООО \"Гарант Энерго\"","7709782777","770901001",null,null,null,null,null,"Нерегулируемый сбыт","/Электроэнергетика/Сбыт ЭЭ/Нерегулируемый сбыт","Y"]
[21,"2597","Орловская область",null,null,null,null,"26524717","ООО \"Каскад-Энергосбыт\"","4028033356","402801001",null,null,null,null,null,"Нерегулируемый сбыт","/Электроэнергетика/Сбыт ЭЭ/Нерегулируемый сбыт","Y"]
[22,"2597","Орловская область",null,null,null,null,"28798112","ООО \"Квадра-Энергосбыт\"","7107536816","710701001",null,null,null,null,null,"Нерегулируемый сбыт","/Электроэнергетика/Сбыт ЭЭ/Нерегулируемый сбыт","Y"]
[23,"2597","Орловская область",null,null,null,null,"28147378","ООО \"МагнитЭнерго\"","7715902899","231001001",null,null,null,null,null,"Нерегулируемый сбыт","/Электроэнергетика/Сбыт ЭЭ/Нерегулируемый сбыт","Y"]
[24,"2597","Орловская область",null,null,null,null,"27667971","ООО \"МагнитЭнерго\"","7715902899","771501001",null,null,null,null,null,"Нерегулируемый сбыт","/Электроэнергетика/Сбыт ЭЭ/Нерегулируемый сбыт","Y"]
[25,"2597","Орловская область",null,null,null,null,"27567581","ООО \"Орловский энергосбыт\"","5754020600","575301001","22-08-2011 00:00:00",null,null,null,null,"ГП","/Электроэнергетика/Сбыт ЭЭ/ГП","Y"]
[26,"2597","Орловская область",null,null,null,null,"26519588","ООО \"Промэнергосеть\"","5753041654","575301001",null,null,null,null,null,"РСО","/Электроэнергетика/Передача ЭЭ/РСО","Y"]
[27,"2597","Орловская область",null,null,null,null,"28113333","ООО \"РН-Энерго\"","7706525041","774850001","26-02-2004 00:00:00",null,null,null,null,"Нерегулируемый сбыт","/Электроэнергетика/Сбыт ЭЭ/Нерегулируемый сбыт","N"]
[28,"2597","Орловская область",null,null,null,null,"26416221","ООО \"РН-Энерго\"","7706525041","997650001","02-05-2012 00:00:00",null,null,null,null,"Нерегулируемый сбыт","/Электроэнергетика/Сбыт ЭЭ/Нерегулируемый сбыт","Y"]
[29,"2597","Орловская область",null,null,null,null,"26406211","ООО \"Русэнергоресурс\"","7706288496","770601001",null,null,null,null,null,"Нерегулируемый сбыт","/Электроэнергетика/Сбыт ЭЭ/Нерегулируемый сбыт","Y"]
[30,"2597","Орловская область",null,null,null,null,"26502786","ООО \"Русэнергосбыт\"","7706284124","770601001",null,null,null,null,null,"Нерегулируемый сбыт","/Электроэнергетика/Сбыт ЭЭ/Нерегулируемый сбыт","Y"]
[31,"2597","Орловская область",null,null,null,null,"26359174","ООО \"СтройПарк\"","5753037217","575301001",null,null,null,null,null,"РСО","/Электроэнергетика/Передача ЭЭ/РСО","Y"]
[32,"2597","Орловская область",null,null,null,null,"26519585","ООО \"ТЭС\"","6311049306","531101001",null,null,null,null,null,"РСО","/Электроэнергетика/Передача ЭЭ/РСО","Y"]
[33,"2597","Орловская область",null,null,null,null,"26497668","ООО \"Транснефтьэнерго\"","7703552167","772301001","01-07-2009 00:00:00",null,null,null,null,"Нерегулируемый сбыт","/Электроэнергетика/Сбыт ЭЭ/Нерегулируемый сбыт","Y"]
[34,"2597","Орловская область",null,null,null,null,"26801410","ООО \"Центральная Энергосбытовая Компания\"","6950076383","770901001",null,null,null,null,null,"Нерегулируемый сбыт","/Электроэнергетика/Сбыт ЭЭ/Нерегулируемый сбыт","Y"]
[35,"2597","Орловская область",null,null,null,null,"30989522","ООО \"ЭСВ\"","7704440018","332701001",null,null,null,null,null,"Нерегулируемый сбыт","/Электроэнергетика/Сбыт ЭЭ/Нерегулируемый сбыт","Y"]
[36,"2597","Орловская область",null,null,null,null,"28494405","ООО \"Энергосистема\"","7715887873","770201001",null,null,null,null,null,"Нерегулируемый сбыт","/Электроэнергетика/Сбыт ЭЭ/Нерегулируемый сбыт","Y"]
[37,"2597","Орловская область",null,null,null,null,"30434147","ООО «Лыковская ГЭС»","5717009038","571701001",null,null,null,null,null,"РСО :: Некомбинированная выработка","/Электроэнергетика/Передача ЭЭ/РСО :: /Электроэнергетика/Производство ЭЭ/Некомбинированная выработка","Y"]
[38,"2597","Орловская область",null,null,null,null,"31304544","ООО «РЭК»","7714974474","645401001",null,null,null,null,null,"Нерегулируемый сбыт","/Электроэнергетика/Сбыт ЭЭ/Нерегулируемый сбыт","Y"]
[39,"2597","Орловская область",null,null,null,null,"30893851","Общество с ограниченной ответственностью «АгроЭнергоСбыт»","7730188527","773001001",null,null,null,null,null,"Нерегулируемый сбыт","/Электроэнергетика/Сбыт ЭЭ/Нерегулируемый сбыт","Y"]
[40,"2597","Орловская область",null,null,null,null,"27051136","ПАО \"Квадра - Генерирующая компания\"","6829012680","710701001",null,null,null,null,null,"Комбинированная выработка","/Электроэнергетика/Производство ЭЭ/Комбинированная выработка","Y"]
[41,"2597","Орловская область",null,null,null,null,"27954259","ПАО \"ФСК ЕЭС\"","4716016979","997450001",null,null,null,null,null,"РСО","/Электроэнергетика/Передача ЭЭ/РСО","Y"]
[42,"2597","Орловская область",null,null,null,null,"27301763","Филиал «Юго-Западный» АО «Оборонэнерго»","7704726225","575243001",null,null,null,null,null,"РСО","/Электроэнергетика/Передача ЭЭ/РСО","Y"]
[43,"2597","Орловская область",null,null,null,null,"30378002","Филиал ПАО \"Квадра\" - \"Орловская генерация\"","6829012680","575143001",null,null,null,null,null,"Комбинированная выработка","/Электроэнергетика/Производство ЭЭ/Комбинированная выработка","Y"]
[44,"2597","Орловская область",null,null,null,null,"26519566","Филиал ПАО \"МРСК Центра\" - \"Орелэнерго\"","6901067107","575102001",null,null,null,null,null,"РСО","/Электроэнергетика/Передача ЭЭ/РСО","Y"]
[45,"2597","Орловская область",null,null,null,null,"26513518","Центральный филиал ООО «Газпром энерго»","7736186950","504343001","07-02-2006 00:00:00",null,null,null,null,"РСО","/Электроэнергетика/Передача ЭЭ/РСО","Y"]

{"sheet":"REESTR_FIL","index":18,"n_rows":1,"n_cols":5,"rows_kept":1,"cut":false,"hidden":true,"merged":[]}
["МР","МО","МО_ОКТМО","МР","ИМЯ ДИАПАЗОНА"]

{"sheet":"REESTR_MO","index":19,"n_rows":268,"n_cols":6,"rows_kept":268,"cut":false,"hidden":true,"merged":[]}
["МР","МО","МО_ОКТМО","МО_ТИП","МР","ИМЯ ДИАПАЗОНА"]
["Болховский муниципальный район","Багриновское сельское поселение","54604402","сельское поселение","Болховский муниципальный район","MO_LIST_2"]
["Болховский муниципальный район","Болхов городское поселение","54604101","городское поселение, в состав которого входит город","Верховский муниципальный район","MO_LIST_3"]
["Болховский муниципальный район","Болховский муниципальный район","54604000","муниципальный район","Глазуновский муниципальный район","MO_LIST_4"]
["Болховский муниципальный район","Бориловское сельское поселение","54604406","сельское поселение","Город Ливны","MO_LIST_5"]
["Болховский муниципальный район","Боровское сельское поселение","54604408","сельское поселение","Город Мценск","MO_LIST_6"]
["Болховский муниципальный район","Герасимовское сельское поселение","54604410","сельское поселение","Город Орёл","MO_LIST_7"]
["Болховский муниципальный район","Гнездиловское сельское поселение","54604413","сельское поселение","Дмитровский муниципальный район","MO_LIST_8"]
["Болховский муниципальный район","Злынское сельское поселение","54604416","сельское поселение","Должанский муниципальный район","MO_LIST_9"]
["Болховский муниципальный район","Медведковское сельское поселение","54604422","сельское поселение","Залегощенский муниципальный район","MO_LIST_10"]
["Болховский муниципальный район","Михневское сельское поселение","54604425","сельское поселение","Знаменский муниципальный район","MO_LIST_11"]
["Болховский муниципальный район","Новосинецкое сельское поселение","54604428","сельское поселение","Колпнянский муниципальный район","MO_LIST_12"]
["Болховский муниципальный район","Однолуцкое сельское поселение","54604431","сельское поселение","Корсаковский муниципальный район","MO_LIST_13"]
["Болховский муниципальный район","Сурьянинское сельское поселение","54604434","сельское поселение","Краснозоренский муниципальный район","MO_LIST_14"]
["Болховский муниципальный район","Хуторское сельское поселение","54604437","сельское поселение","Кромской муниципальный район","MO_LIST_15"]
["Болховский муниципальный район","Ямское сельское поселение","54604440","сельское поселение","Ливенский муниципальный район","MO_LIST_16"]
["Верховский муниципальный район","Васильевское сельское поселение","54608402","сельское поселение","Малоархангельский муниципальный район","MO_LIST_17"]
["Верховский муниципальный район","Верховский муниципальный район","54608000","муниципальный район","Мценский муниципальный район","MO_LIST_18"]
["Верховский муниципальный район","Верховье городское поселение","54608151","городское поселение, в состав которого входит поселок","Новодеревеньковский муниципальный район","MO_LIST_19"]
["Верховский муниципальный район","Галичинское","54608404","сельское поселение","Новосильский муниципальный район","MO_LIST_20"]
["Верховский муниципальный район","Коньшинское сельское поселение","54608407","сельское поселение","Орловский муниципальный район","MO_LIST_21"]
["Верховский муниципальный район","Корсунское сельское поселение","54608410","сельское поселение","Покровский муниципальный район","MO_LIST_22"]
["Верховский муниципальный район","Нижне-Жерновское сельское поселение","54608413","сельское поселение","Свердловский муниципальный район","MO_LIST_23"]
["Верховский муниципальный район","Песоченское сельское поселение","54608416","сельское поселение","Сосковский муниципальный район","MO_LIST_24"]
["Верховский муниципальный район","Русско-Бродское сельское поселение","54608419","сельское поселение","Троснянский муниципальный район","MO_LIST_25"]
["Верховский муниципальный район","Скородненское сельское поселение","54608422","сельское поселение","Урицкий муниципальный район","MO_LIST_26"]
["Верховский муниципальный район","Теляженское сельское поселение","54608428","сельское поселение","Хотынецкий муниципальный район","MO_LIST_27"]
["Верховский муниципальный район","Туровское сельское поселение","54608431","сельское поселение","Шаблыкинский муниципальный район","MO_LIST_28"]
["Глазуновский муниципальный район","Богородское сельское поселение","54610402","сельское поселение"]
["Глазуновский муниципальный район","Глазуновка городское поселение","54610151","городское поселение, в состав которого входит поселок"]
["Глазуновский муниципальный район","Глазуновский муниципальный район","54610000","муниципальный район"]
["Глазуновский муниципальный район","Краснослободское сельское поселение","54610404","сельское поселение"]
["Глазуновский муниципальный район","Медведевское сельское поселение","54610407","сельское поселение"]
["Глазуновский муниципальный район","Отрадинское сельское поселение","54610410","сельское поселение"]
["Глазуновский муниципальный район","Очкинское сельское поселение","54610413","сельское поселение"]
["Глазуновский муниципальный район","Сеньковское сельское поселение","54610416","сельское поселение"]
["Глазуновский муниципальный район","Тагинское сельское поселение","54610419","сельское поселение"]
["Город Ливны","Город Ливны","54705000","городской округ"]
["Город Мценск","Город Мценск","54710000","городской округ"]
["Город Орёл","Город Орёл","54701000","городской округ"]
["Дмитровский муниципальный район","Алешинское сельское поселение","54612402","сельское поселение"]
["Дмитровский муниципальный район","Березовское сельское поселение","54612404","сельское поселение"]
["Дмитровский муниципальный район","Бородинское сельское поселение","54612407","сельское поселение"]
["Дмитровский муниципальный район","Горбуновское сельское поселение","54612410","сельское поселение"]
["Дмитровский муниципальный район","Дмитровск городское поселение","54612101","городское поселение, в состав которого входит город"]
["Дмитровский муниципальный район","Дмитровский муниципальный район","54612000","муниципальный район"]
["Дмитровский муниципальный район","Долбенкинское сельское поселение","54612413","сельское поселение"]
["Дмитровский муниципальный район","Домаховское сельское поселение","54612416","сельское поселение"]
["Дмитровский муниципальный район","Друженское сельское поселение","54612428","сельское поселение"]
["Дмитровский муниципальный район","Лубянское сельское поселение","54612419","сельское поселение"]
["Дмитровский муниципальный район","Малобобровское сельское поселение","54612422","сельское поселение"]
["Дмитровский муниципальный район","Плосковское сельское поселение","54612425","сельское поселение"]
["Дмитровский муниципальный район","Соломинское","54612431","сельское поселение"]
["Дмитровский муниципальный район","Столбищенское сельское поселение","54612434","сельское поселение"]
["Должанский муниципальный район","Вышнее Ольшанское сельское поселение","54615402","сельское поселение"]
["Должанский муниципальный район","Долгое городское поселение","54615151","городское поселение, в состав которого входит поселок"]
["Должанский муниципальный район","Должанский муниципальный район","54615000","муниципальный район"]
["Должанский муниципальный район","Дубровское сельское поселение","54615405","сельское поселение"]
["Должанский муниципальный район","Козьма-Демьяновское сельское поселение","54615407","сельское поселение"]
["Должанский муниципальный район","Кудиновское сельское поселение","54615410","сельское поселение"]
["Должанский муниципальный район","Рогатинское сельское поселение","54615413","сельское поселение"]
["Должанский муниципальный район","Урыновское сельское поселение","54615416","сельское поселение"]
["Должанский муниципальный район","Успенское сельское поселение","54615419","сельское поселение"]
["Залегощенский муниципальный район","Бортновское сельское поселение","54618402","сельское поселение"]
["Залегощенский муниципальный район","Верхнескворченское сельское поселение","54618404","сельское поселение"]
["Залегощенский муниципальный район","Грачевское сельское поселение","54618407","сельское поселение"]
["Залегощенский муниципальный район","Залегощенский муниципальный район","54618000","муниципальный район"]
["Залегощенский муниципальный район","Залегощь городское поселение","54618151","городское поселение, в состав которого входит поселок"]
["Залегощенский муниципальный район","Золотаревское сельское поселение","54618410","сельское поселение"]
["Залегощенский муниципальный район","Красненское сельское поселение","54618413","сельское поселение"]
["Залегощенский муниципальный район","Ломовское сельское поселение","54618416","сельское поселение"]
["Залегощенский муниципальный район","Моховское сельское поселение","54618419","сельское поселение"]
["Залегощенский муниципальный район","Нижнезалегощенское сельское поселение","54618422","сельское поселение"]
["Залегощенский муниципальный район","Октябрьское сельское поселение","54618425","сельское поселение"]
["Залегощенский муниципальный район","Прилепское сельское поселение","54618428","сельское поселение"]
["Знаменский муниципальный район","Глотовское сельское поселение","54620405","сельское поселение"]
["Знаменский муниципальный район","Ждимирское сельское поселение","54620408","сельское поселение"]
["Знаменский муниципальный район","Знаменский муниципальный район","54620000","муниципальный район"]
["Знаменский муниципальный район","Знаменское сельское поселение","54620412","сельское поселение"]
["Знаменский муниципальный район","Коптевское сельское поселение","54620420","сельское поселение"]
["Знаменский муниципальный район","Красниковское сельское поселение","54620422","сельское поселение"]
["Знаменский муниципальный район","Селиховское сельское поселение","54620428","сельское поселение"]
["Знаменский муниципальный район","Узкинское сельское поселение","54620432","сельское поселение"]
["Колпнянский муниципальный район","Ахтырское сельское поселение","54623402","сельское поселение"]
["Колпнянский муниципальный район","Белоколодезьское сельское поселение","54623404","сельское поселение"]
["Колпнянский муниципальный район","Знаменское сельское поселение","54623407","сельское поселение"]
["Колпнянский муниципальный район","Карловское сельское поселение","54623410","сельское поселение"]
["Колпнянский муниципальный район","Колпна городское поселение","54623151","городское поселение, в состав которого входит поселок"]
["Колпнянский муниципальный район","Колпнянский муниципальный район","54623000","муниципальный район"]
["Колпнянский муниципальный район","Краснянское сельское поселение","54623413","сельское поселение"]
["Колпнянский муниципальный район","Крутовское сельское поселение","54623416","сельское поселение"]
["Колпнянский муниципальный район","Тимирязевское сельское поселение","54623419","сельское поселение"]
["Колпнянский муниципальный район","Ушаковское сельское поселение","54623422","сельское поселение"]
["Колпнянский муниципальный район","Ярищенское сельское поселение","54623425","сельское поселение"]
["Корсаковский муниципальный район","Гагаринское сельское поселение","54626405","сельское поселение"]
["Корсаковский муниципальный район","Корсаковский муниципальный район","54626000","муниципальный район"]
["Корсаковский муниципальный район","Корсаковское сельское поселение","54626410","сельское поселение"]
["Корсаковский муниципальный район","Марьинское сельское поселение","54626413","сельское поселение"]
["Корсаковский муниципальный район","Нечаевское сельское поселение","54626417","сельское поселение"]
["Корсаковский муниципальный район","Новомихайловское сельское поселение","54626420","сельское поселение"]
["Корсаковский муниципальный район","Парамоновское сельское поселение","54626425","сельское поселение"]
["Корсаковский муниципальный район","Спешневское сельское поселение","54626430","сельское поселение"]
["Краснозоренский муниципальный район","Краснозоренский муниципальный район","54624000","муниципальный район"]
["Краснозоренский муниципальный район","Краснозоренское сельское поселение","54624407","сельское поселение"]
["Краснозоренский муниципальный район","Покровское сельское поселение","54624412","сельское поселение"]
["Краснозоренский муниципальный район","Россошенское сельское поселение","54624417","сельское поселение"]
["Краснозоренский муниципальный район","Труновское сельское поселение","54624420","сельское поселение"]
["Краснозоренский муниципальный район","Успенское сельское поселение","54624425","сельское поселение"]
["Кромской муниципальный район","Апальковское сельское поселение","54625402","сельское поселение"]
["Кромской муниципальный район","Бельдяжское сельское поселение","54625404","сельское поселение"]
["Кромской муниципальный район","Большеколчевское сельское поселение","54625407","сельское поселение"]
["Кромской муниципальный район","Городское поселение Кромы","54625151","городское поселение, в состав которого входит поселок"]
["Кромской муниципальный район","Гостомльское сельское поселение","54625413","сельское поселение"]
["Кромской муниципальный район","Гуторовское сельское поселение","54625416","сельское поселение"]
["Кромской муниципальный район","Короськовское сельское поселение","54625422","сельское поселение"]
["Кромской муниципальный район","Красниковское сельское поселение","54625425","сельское поселение"]
["Кромской муниципальный район","Кривчиковское сельское поселение","54625428","сельское поселение"]
["Кромской муниципальный район","Кромской муниципальный район","54625000","муниципальный район"]
["Кромской муниципальный район","Кутафинское сельское поселение","54625431","сельское поселение"]
["Кромской муниципальный район","Ретяжское сельское поселение","54625449","сельское поселение"]
["Кромской муниципальный район","Стрелецкое сельское поселение","54625452","сельское поселение"]
["Кромской муниципальный район","Шаховское сельское поселение","54625458","сельское поселение"]
["Ливенский муниципальный район","Беломестненское сельское поселение","54629402","сельское поселение"]
["Ливенский муниципальный район","Вахновское сельское поселение","54629404","сельское поселение"]
["Ливенский муниципальный район","Галическое сельское поселение","54629407","сельское поселение"]
["Ливенский муниципальный район","Дутовское сельское поселение","54629410","сельское поселение"]
["Ливенский муниципальный район","Здоровецкое сельское поселение","54629413","сельское поселение"]
["Ливенский муниципальный район","Казанское сельское поселение","54629416","сельское поселение"]
["Ливенский муниципальный район","Козьминское сельское поселение","54629419","сельское поселение"]
["Ливенский муниципальный район","Коротышское сельское поселение","54629422","сельское поселение"]
["Ливенский муниципальный район","Крутовское сельское поселение","54629425","сельское поселение"]
["Ливенский муниципальный район","Ливенский муниципальный район","54629000","муниципальный район"]
["Ливенский муниципальный район","Лютовское сельское поселение","54629428","сельское поселение"]
["Ливенский муниципальный район","Навесненское сельское поселение","54629431","сельское поселение"]
["Ливенский муниципальный район","Никольское сельское поселение","54629434","сельское поселение"]
["Ливенский муниципальный район","Островское сельское поселение","54629440","сельское поселение"]
["Ливенский муниципальный район","Речицкое сельское поселение","54629443","сельское поселение"]
["Ливенский муниципальный район","Сергиевское","54629446","сельское поселение"]
["Ливенский муниципальный район","Сосновское сельское поселение","54629449","сельское поселение"]
["Малоархангельский муниципальный район","Губкинское сельское поселение","54632402","сельское поселение"]
["Малоархангельский муниципальный район","Дубовицкое сельское поселение","54632404","сельское поселение"]
["Малоархангельский муниципальный район","Ленинское сельское поселение","54632407","сельское поселение"]
["Малоархангельский муниципальный район","Луковское сельское поселение","54632410","сельское поселение"]
["Малоархангельский муниципальный район","Малоархангельск городское поселение","54632101","городское поселение, в состав которого входит город"]
["Малоархангельский муниципальный район","Малоархангельский муниципальный район","54632000","муниципальный район"]
["Малоархангельский муниципальный район","Октябрьское сельское поселение","54632413","сельское поселение"]
["Малоархангельский муниципальный район","Первомайское сельское поселение","54632416","сельское поселение"]
["Малоархангельский муниципальный район","Подгородненское сельское поселение","54632419","сельское поселение"]
["Мценский муниципальный район","Алябьевское сельское поселение","54636402","сельское поселение"]
["Мценский муниципальный район","Аникановское сельское поселение","54636407","сельское поселение"]
["Мценский муниципальный район","Башкатовское сельское поселение","54636404","сельское поселение"]
["Мценский муниципальный район","Воинское сельское поселение","54636410","сельское поселение"]
["Мценский муниципальный район","Высокинское сельское поселение","54636413","сельское поселение"]
["Мценский муниципальный район","Карандаковское сельское поселение","54636416","сельское поселение"]
["Мценский муниципальный район","Мценский муниципальный район","54636000","муниципальный район"]
["Мценский муниципальный район","Отрадинское","54636418","сельское поселение"]
["Мценский муниципальный район","Подберезовское сельское поселение","54636428","сельское поселение"]
["Мценский муниципальный район","Подмокринское сельское поселение","54636419","сельское поселение"]
["Мценский муниципальный район","Протасовское сельское поселение","54636422","сельское поселение"]
["Мценский муниципальный район","Спасско-Лутовиновское","54636425","сельское поселение"]
["Мценский муниципальный район","Тельченское сельское поселение","54636431","сельское поселение"]
["Мценский муниципальный район","Чахинское сельское поселение","54636434","сельское поселение"]
["Мценский муниципальный район","Черемошенское сельское поселение","54636437","сельское поселение"]
["Новодеревеньковский муниципальный район","Глебовское сельское поселение","54639404","сельское поселение"]
["Новодеревеньковский муниципальный район","Никитинское сельское поселение","54639409","сельское поселение"]
["Новодеревеньковский муниципальный район","Новодеревеньковский муниципальный район","54639000","муниципальный район"]
["Новодеревеньковский муниципальный район","Новодеревеньковское сельское поселение","54639410","сельское поселение"]
["Новодеревеньковский муниципальный район","Паньковское сельское поселение","54639413","сельское поселение"]
["Новодеревеньковский муниципальный район","Старогольское сельское поселение","54639419","сельское поселение"]
["Новодеревеньковский муниципальный район","Судбищенское","54639422","сельское поселение"]
["Новодеревеньковский муниципальный район","Суровское сельское поселение","54639425","сельское поселение"]
["Новодеревеньковский муниципальный район","Хомутово городское поселение","54639151","городское поселение, в состав которого входит поселок"]
["Новосильский муниципальный район","Вяжевское сельское поселение","54643402","сельское поселение"]
["Новосильский муниципальный район","Глубковское сельское поселение","54643404","сельское поселение"]
["Новосильский муниципальный район","Голунское сельское поселение","54643410","сельское поселение"]
["Новосильский муниципальный район","Зареченское сельское поселение","54643413","сельское поселение"]
["Новосильский муниципальный район","Новосиль городское поселение","54643101","городское поселение, в состав которого входит город"]
["Новосильский муниципальный район","Новосильский муниципальный район","54643000","муниципальный район"]
["Новосильский муниципальный район","Петушенское сельское поселение","54643431","сельское поселение"]
["Новосильский муниципальный район","Прудовское сельское поселение","54643434","сельское поселение"]
["Новосильский муниципальный район","Хворостянское сельское поселение","54643440","сельское поселение"]
["Орловский муниципальный район","Большекуликовское сельское поселение","54647402","сельское поселение"]
["Орловский муниципальный район","Голохвастовское сельское поселение","54647404","сельское поселение"]
["Орловский муниципальный район","Жиляевское сельское поселение","54647407","сельское поселение"]
["Орловский муниципальный район","Знаменка городское поселение","54647152","городское поселение, в состав которого входит поселок"]
["Орловский муниципальный район","Лавровское сельское поселение","54647410","сельское поселение"]
["Орловский муниципальный район","Лошаковское сельское поселение","54647413","сельское поселение"]
["Орловский муниципальный район","Масловское сельское поселение","54647416","сельское поселение"]
["Орловский муниципальный район","Моховицкое сельское поселение","54647419","сельское поселение"]
["Орловский муниципальный район","Неполодское сельское поселение","54647422","сельское поселение"]
["Орловский муниципальный район","Образцовское сельское поселение","54647425","сельское поселение"]
["Орловский муниципальный район","Орловский муниципальный район","54647000","муниципальный район"]
["Орловский муниципальный район","Пахомовское сельское поселение","54647428","сельское поселение"]
["Орловский муниципальный район","Платоновское сельское поселение","54647431","сельское поселение"]
["Орловский муниципальный район","Сабуровское сельское поселение","54647434","сельское поселение"]
["Орловский муниципальный район","Спасское сельское поселение","54647437","сельское поселение"]
["Орловский муниципальный район","Станово-Колодезьское сельское поселение","54647443","сельское поселение"]
["Орловский муниципальный район","Становское сельское поселение","54647440","сельское поселение"]
["Орловский муниципальный район","Троицкое сельское поселение","54647446","сельское поселение"]
["Покровский муниципальный район","Березовское сельское поселение","54650402","сельское поселение"]
["Покровский муниципальный район","Верхнежерновское сельское поселение","54650404","сельское поселение"]
["Покровский муниципальный район","Верхососенское сельское поселение","54650405","сельское поселение"]
["Покровский муниципальный район","Владимирское сельское поселение","54650407","сельское поселение"]
["Покровский муниципальный район","Вышнетуровецкое сельское поселение","54650410","сельское поселение"]
["Покровский муниципальный район","Даниловское сельское поселение","54650413","сельское поселение"]
["Покровский муниципальный район","Дросковское сельское поселение","54650416","сельское поселение"]
["Покровский муниципальный район","Журавецкое сельское поселение","54650419","сельское поселение"]
["Покровский муниципальный район","Ивановское сельское поселение","54650422","сельское поселение"]
["Покровский муниципальный район","Моховское сельское поселение","54650425","сельское поселение"]
["Покровский муниципальный район","Покровский муниципальный район","54650000","муниципальный район"]
["Покровский муниципальный район","Покровское городское поселение","54650151","городское поселение, в состав которого входит поселок"]
["Покровский муниципальный район","Ретинское сельское поселение","54650431","сельское поселение"]
["Покровский муниципальный район","Столбецкое сельское поселение","54650434","сельское поселение"]
["Покровский муниципальный район","Топковское сельское поселение","54650437","сельское поселение"]
["Свердловский муниципальный район","Богодуховское сельское поселение","54652402","сельское поселение"]
["Свердловский муниципальный район","Змиевка городское поселение","54652151","городское поселение, в состав которого входит поселок"]
["Свердловский муниципальный район","Котовское сельское поселение","54652404","сельское поселение"]
["Свердловский муниципальный район","Кошелевское сельское поселение","54652407","сельское поселение"]
["Свердловский муниципальный район","Красноармейское сельское поселение","54652410","сельское поселение"]
["Свердловский муниципальный район","Никольское сельское поселение","54652413","сельское поселение"]
["Свердловский муниципальный район","Новопетровское сельское поселение","54652416","сельское поселение"]
["Свердловский муниципальный район","Свердловский муниципальный район","54652000","муниципальный район"]
["Свердловский муниципальный район","Яковлевское сельское поселение","54652419","сельское поселение"]
["Сосковский муниципальный район","Алмазовское сельское поселение","54653403","сельское поселение"]
["Сосковский муниципальный район","Алпеевское сельское поселение","54653405","сельское поселение"]
["Сосковский муниципальный район","Кировское сельское поселение","54653415","сельское поселение"]
["Сосковский муниципальный район","Лобынцевское сельское поселение","54653417","сельское поселение"]
["Сосковский муниципальный район","Мураевское сельское поселение","54653419","сельское поселение"]
["Сосковский муниципальный район","Рыжковское сельское поселение","54653422","сельское поселение"]
["Сосковский муниципальный район","Сосковский муниципальный район","54653000","муниципальный район"]
["Сосковский муниципальный район","Сосковское сельское поселение","54653425","сельское поселение"]
["Троснянский муниципальный район","Воронецкое сельское поселение","54654405","сельское поселение"]
["Троснянский муниципальный район","Жерновецкое сельское поселение","54654408","сельское поселение"]
["Троснянский муниципальный район","Ломовецкое сельское поселение","54654415","сельское поселение"]
["Троснянский муниципальный район","Малахово-Слободское сельское поселение","54654417","сельское поселение"]
["Троснянский муниципальный район","Муравльское сельское поселение","54654419","сельское поселение"]
["Троснянский муниципальный район","Никольское сельское поселение","54654422","сельское поселение"]
["Троснянский муниципальный район","Пенновское сельское поселение","54654425","сельское поселение"]
["Троснянский муниципальный район","Троснянский муниципальный район","54654000","муниципальный район"]
["Троснянский муниципальный район","Троснянское сельское поселение","54654430","сельское поселение"]
["Урицкий муниципальный район","Архангельское сельское поселение","54655407","сельское поселение"]
["Урицкий муниципальный район","Богдановское сельское поселение","54655410","сельское поселение"]
["Урицкий муниципальный район","Бунинское сельское поселение","54655413","сельское поселение"]
["Урицкий муниципальный район","Городищенское сельское поселение","54655416","сельское поселение"]
["Урицкий муниципальный район","Котовское сельское поселение","54655422","сельское поселение"]
["Урицкий муниципальный район","Луначарское сельское поселение","54655428","сельское поселение"]
["Урицкий муниципальный район","Нарышкино городское поселение","54655151","городское поселение, в состав которого входит поселок"]
["Урицкий муниципальный район","Подзаваловское сельское поселение","54655437","сельское поселение"]
["Урицкий муниципальный район","Урицкий муниципальный район","54655000","муниципальный район"]
["Хотынецкий муниципальный район","Аболмасовское сельское поселение","54657402","сельское поселение"]
["Хотынецкий муниципальный район","Алехинское сельское поселение","54657404","сельское поселение"]
["Хотынецкий муниципальный район","Богородицкое сельское поселение","54657407","сельское поселение"]
["Хотынецкий муниципальный район","Ильинское сельское поселение","54657419","сельское поселение"]
["Хотынецкий муниципальный район","Краснорябинское","54657424","сельское поселение"]
["Хотынецкий муниципальный район","Меловское сельское поселение","54657426","сельское поселение"]
["Хотынецкий муниципальный район","Студеновское сельское поселение","54657431","сельское поселение"]
["Хотынецкий муниципальный район","Хотимль-Кузменковское","54657437","сельское поселение"]
["Хотынецкий муниципальный район","Хотынец городское поселение","54657151","городское поселение, в состав которого входит поселок"]
["Хотынецкий муниципальный район","Хотынецкий муниципальный район","54657000","муниципальный район"]
["Шаблыкинский муниципальный район","Герасимовское сельское поселение","54659402","сельское поселение"]
["Шаблыкинский муниципальный район","Косулическое сельское поселение","54659404","сельское поселение"]
["Шаблыкинский муниципальный район","Молодовское сельское поселение","54659406","сельское поселение"]
["Шаблыкинский муниципальный район","Навлинское сельское поселение","54659408","сельское поселение"]
["Шаблыкинский муниципальный район","Сомовское сельское поселение","54659410","сельское поселение"]
["Шаблыкинский муниципальный район","Титовское сельское поселение","54659413","сельское поселение"]
["Шаблыкинский муниципальный район","Хотьковское сельское поселение","54659416","сельское поселение"]
["Шаблыкинский муниципальный район","Шаблыкино городское поселение","54659151","городское поселение, в состав которого входит поселок"]
["Шаблыкинский муниципальный район","Шаблыкинский муниципальный район","54659000","муниципальный район"]

{"sheet":"REESTR_EGRUL","index":20,"n_rows":0,"n_cols":0,"rows_kept":0,"cut":false,"hidden":true,"merged":[]}

{"sheet":"modfrmRegion","index":21,"n_rows":0,"n_cols":0,"rows_kept":0,"cut":false,"hidden":true,"merged":[]}

{"sheet":"modfrmReestr","index":22,"n_rows":0,"n_cols":0,"rows_kept":0,"cut":false,"hidden":true,"merged":[]}

{"sheet":"modfrmFindEGRUL","index":23,"n_rows":0,"n_cols":0,"rows_kept":0,"cut":false,"hidden":true,"merged":[]}

{"sheet":"modfrmCheckUpdates","index":24,"n_rows":0,"n_cols":0,"rows_kept":0,"cut":false,"hidden":true,"merged":[]}

{"sheet":"modReestr","index":25,"n_rows":0,"n_cols":0,"rows_kept":0,"cut":false,"hidden":true,"merged":[]}

{"sheet":"modUpdTemplMain","index":26,"n_rows":0,"n_cols":0,"rows_kept":0,"cut":false,"hidden":true,"merged":[]}

{"sheet":"modHyperlink","index":27,"n_rows":0,"n_cols":0,"rows_kept":0,"cut":false,"hidden":true,"merged":[]}

{"sheet":"modClassifierValidate","index":28,"n_rows":0,"n_cols":0,"rows_kept":0,"cut":false,"hidden":true,"merged":[]}